[Event "Early-Titled-Tuesday-Blitz-September-26-2023"]
[Site "Chess.com"]
[Date "2023.09.26"]
[Round "4"]
[White "BogdanDeac"]
[Black "Wizard_97"]
[Result "1-0"]
[WhiteElo "2960"]
[BlackElo "2557"]
[TimeControl "180+1"]
[EndTime "8:40:37 PDT"]
[Termination "BogdanDeac won by resignation"]

1. b3 {[%clk 0:03:00.9]} 1... e5 {[%clk 0:02:59.7]} 2. Bb2 {[%clk 0:03:01.8]}
2... Nc6 {[%clk 0:02:59.4]} 3. Nf3 {[%clk 0:02:55.8]} 3... Bd6 {[%clk
0:02:56.3]} 4. c4 {[%clk 0:02:49.8]} 4... Qe7 {[%clk 0:02:54.4]} 5. Nc3 {[%clk
0:02:46.7]} 5... Nf6 {[%clk 0:02:49.2]} 6. d3 {[%clk 0:02:46.8]} 6... a6 {[%clk
0:02:40.7]} 7. e3 {[%clk 0:02:41.7]} 7... O-O {[%clk 0:02:41]} 8. a3 {[%clk
0:02:39.6]} 8... b6 {[%clk 0:02:23]} 9. Be2 {[%clk 0:02:30.1]} 9... Bb7 {[%clk
0:02:22.5]} 10. O-O {[%clk 0:02:29.3]} 10... Nd8 {[%clk 0:02:19.2]} 11. b4
{[%clk 0:02:05.7]} 11... Ne6 {[%clk 0:01:59.2]} 12. Qb3 {[%clk 0:02:02.3]} 12...
Rab8 {[%clk 0:01:33.8]} 13. Nd5 {[%clk 0:01:55.5]} 13... Nxd5 {[%clk 0:01:30.5]}
14. cxd5 {[%clk 0:01:56.4]} 14... Ng5 {[%clk 0:01:30.2]} 15. Nd2 {[%clk
0:01:46.2]} 15... f5 {[%clk 0:01:19.9]} 16. e4 {[%clk 0:01:46.3]} 16... f4
{[%clk 0:01:19.9]} 17. Rac1 {[%clk 0:01:44]} 17... Rf6 {[%clk 0:00:48.6]} 18.
Nf3 {[%clk 0:01:34.9]} 18... Rh6 {[%clk 0:00:48]} 19. Rfd1 {[%clk 0:01:04.4]}
19... Rf8 {[%clk 0:00:36.5]} 20. h3 {[%clk 0:00:40.9]} 20... Nxf3+ {[%clk
0:00:12.7]} 21. Bxf3 {[%clk 0:00:40.6]} 21... g5 {[%clk 0:00:12.9]} 22. d4
{[%clk 0:00:36.3]} 22... Rg6 {[%clk 0:00:11.3]} 23. dxe5 {[%clk 0:00:34.5]}
23... Bxe5 {[%clk 0:00:12.2]} 24. d6+ {[%clk 0:00:19.7]} 24... Qe6 {[%clk
0:00:09.5]} 25. Qxe6+ {[%clk 0:00:19.8]} 25... Rxe6 {[%clk 0:00:10.3]} 26. Bxe5
{[%clk 0:00:19.5]} 26... Rxe5 {[%clk 0:00:11.2]} 27. dxc7 {[%clk 0:00:19.7]}
27... Bc6 {[%clk 0:00:10.1]} 28. Bg4 {[%clk 0:00:14.8]} 28... Re7 {[%clk
0:00:07.7]} 29. Rxc6 {[%clk 0:00:12.3]} 29... dxc6 {[%clk 0:00:08]} 30. c8=Q
{[%clk 0:00:12.9]} 30... Rxc8 {[%clk 0:00:08.7]} 31. Bxc8 {[%clk 0:00:13.4]}
31... Rxe4 {[%clk 0:00:09.6]} 32. Bxa6 {[%clk 0:00:13.5]} 32... c5 {[%clk
0:00:09.4]} 33. bxc5 {[%clk 0:00:12.2]} 33... bxc5 {[%clk 0:00:10.3]} 34. Rc1
{[%clk 0:00:12.5]} 34... Ra4 {[%clk 0:00:10.2]} 35. Bc4+ {[%clk 0:00:12.4]}
35... Kg7 {[%clk 0:00:10.6]} 36. Rc3 {[%clk 0:00:09.5]} 36... Kf6 {[%clk
0:00:11]} 37. Bd3 {[%clk 0:00:09.5]} 37... h6 {[%clk 0:00:10.5]} 38. Kf1 {[%clk
0:00:07.8]} 38... Ke5 {[%clk 0:00:10.3]} 39. Ke2 {[%clk 0:00:04.9]} 39... Kd4
{[%clk 0:00:09.7]} 40. Kd2 {[%clk 0:00:05.2]} 40... h5 {[%clk 0:00:05.1]} 41. g3
{[%clk 0:00:04.8]} 41... fxg3 {[%clk 0:00:05.2]} 42. fxg3 {[%clk 0:00:05.7]}
42... h4 {[%clk 0:00:05.8]} 43. g4 {[%clk 0:00:05.8]} 43... c4 {[%clk
0:00:04.8]} 44. Rxc4+ {[%clk 0:00:05.2]} 44... Rxc4 {[%clk 0:00:05]} 45. Bxc4
{[%clk 0:00:06.1]} 45... Kxc4 {[%clk 0:00:05.9]} 46. Ke3 {[%clk 0:00:06.6]}
46... Kb3 {[%clk 0:00:06.4]} 47. Ke4 {[%clk 0:00:07.2]} 47... Kxa3 {[%clk
0:00:07.3]} 48. Kf5 {[%clk 0:00:07.8]} 48... Kb4 {[%clk 0:00:08.2]} 49. Kxg5
{[%clk 0:00:08.5]} 49... Kc5 {[%clk 0:00:09.1]} 50. Kxh4 {[%clk 0:00:09]} 50...
Kd6 {[%clk 0:00:10]} 51. Kg5 {[%clk 0:00:09.7]} 51... Ke7 {[%clk 0:00:10.9]} 52.
Kg6 {[%clk 0:00:10.6]} 52... Kf8 {[%clk 0:00:11.7]} 53. Kh7 {[%clk 0:00:11.5]}
53... Kf7 {[%clk 0:00:12.1]} 54. g5 {[%clk 0:00:12.4]} 54... Ke6 {[%clk
0:00:13]} 55. h4 {[%clk 0:00:12]} 55... Kf5 {[%clk 0:00:13.9]} 56. Kh6 {[%clk
0:00:12.6]} 56... Kg4 {[%clk 0:00:14.4]} 57. h5 {[%clk 0:00:13]} 57... Kf5
{[%clk 0:00:14.6]} 58. g6 {[%clk 0:00:13.6]} 58... Kf4 {[%clk 0:00:15.1]} 59.
Kg7 {[%clk 0:00:13.7]} 59... Kg4 {[%clk 0:00:16]} 60. h6 {[%clk 0:00:14.6]}
60... Kf4 {[%clk 0:00:16.9]} 61. h7 {[%clk 0:00:15.5]} 61... Ke3 {[%clk
0:00:17.8]} 62. h8=Q {[%clk 0:00:16.4]} 62... Kd3 {[%clk 0:00:18.7]} 63. Qe8
{[%clk 0:00:16.4]} 63... Kd2 {[%clk 0:00:19.6]} 64. Kf6 {[%clk 0:00:17.3]} 64...
Kd1 {[%clk 0:00:20.5]} 65. g7 {[%clk 0:00:18.2]} 65... Kc2 {[%clk 0:00:20.8]}
66. g8=Q {[%clk 0:00:19.1]} 66... Kc1 {[%clk 0:00:21.7]} 67. Qd5 {[%clk
0:00:19.1]} 67... Kb1 {[%clk 0:00:22.6]} 68. Qec6 {[%clk 0:00:17.2]} 1-0

[Event "Early-Titled-Tuesday-Blitz-September-26-2023"]
[Site "Chess.com"]
[Date "2023.09.26"]
[Round "4"]
[White "ferdipy"]
[Black "Kostya0705"]
[Result "1-0"]
[WhiteElo "2301"]
[BlackElo "2607"]
[TimeControl "180+1"]
[EndTime "8:40:39 PDT"]
[Termination "ferdipy won by checkmate"]

1. e4 {[%clk 0:02:35.6]} 1... c5 {[%clk 0:02:57.6]} 2. d4 {[%clk 0:02:35.5]}
2... cxd4 {[%clk 0:02:58.5]} 3. c3 {[%clk 0:02:35.7]} 3... dxc3 {[%clk
0:02:55.6]} 4. Nxc3 {[%clk 0:02:36.6]} 4... e6 {[%clk 0:02:50.8]} 5. Bc4 {[%clk
0:02:35.9]} 5... a6 {[%clk 0:02:51.2]} 6. Nf3 {[%clk 0:02:34.8]} 6... b5 {[%clk
0:02:50.7]} 7. Bb3 {[%clk 0:02:35.1]} 7... Nc6 {[%clk 0:02:51.3]} 8. O-O {[%clk
0:02:35.4]} 8... Nge7 {[%clk 0:02:49.3]} 9. Qe2 {[%clk 0:02:35.6]} 9... Ng6
{[%clk 0:02:49]} 10. Rd1 {[%clk 0:02:36.1]} 10... Bb7 {[%clk 0:02:48.2]} 11. Be3
{[%clk 0:02:36.7]} 11... Na5 {[%clk 0:02:46.9]} 12. Rac1 {[%clk 0:02:33]} 12...
Nxb3 {[%clk 0:02:44.3]} 13. axb3 {[%clk 0:02:33.9]} 13... Be7 {[%clk 0:02:43.4]}
14. Rd2 {[%clk 0:02:26.8]} 14... O-O {[%clk 0:02:39.1]} 15. Rcd1 {[%clk
0:02:27.1]} 15... d6 {[%clk 0:02:24.7]} 16. h4 {[%clk 0:02:21.2]} 16... Qc7
{[%clk 0:02:08.3]} 17. h5 {[%clk 0:02:13.1]} 17... Ne5 {[%clk 0:02:08.3]} 18.
Ng5 {[%clk 0:02:06]} 18... h6 {[%clk 0:02:00.1]} 19. Nh3 {[%clk 0:02:03.8]}
19... b4 {[%clk 0:01:51.7]} 20. Na4 {[%clk 0:01:48.4]} 20... Bc6 {[%clk
0:01:27.9]} 21. Nb6 {[%clk 0:01:46.5]} 21... Rab8 {[%clk 0:01:24.2]} 22. Nc4
{[%clk 0:01:46.3]} 22... Bb5 {[%clk 0:01:16.4]} 23. Rd4 {[%clk 0:01:32.4]} 23...
Rfc8 {[%clk 0:00:59.7]} 24. Rc1 {[%clk 0:00:54.9]} 24... Nc6 {[%clk 0:00:52.6]}
25. Rdd1 {[%clk 0:00:53.4]} 25... Rd8 {[%clk 0:00:46.7]} 26. Qg4 {[%clk
0:00:53.6]} 26... Kh8 {[%clk 0:00:42.3]} 27. Qg3 {[%clk 0:00:49.7]} 27... Rd7
{[%clk 0:00:32.4]} 28. Qf3 {[%clk 0:00:30.3]} 28... Bf6 {[%clk 0:00:30.6]} 29.
Qg3 {[%clk 0:00:18.1]} 29... e5 {[%clk 0:00:15.2]} 30. Qg4 {[%clk 0:00:16]}
30... Nd4 {[%clk 0:00:11.2]} 31. Bxd4 {[%clk 0:00:15]} 31... exd4 {[%clk
0:00:10.9]} 32. Ne5 {[%clk 0:00:14.9]} 32... Qd8 {[%clk 0:00:10.4]} 33. Nxd7
{[%clk 0:00:14.6]} 33... Bxd7 {[%clk 0:00:11.3]} 34. Qg3 {[%clk 0:00:14.8]}
34... Be5 {[%clk 0:00:10.8]} 35. f4 {[%clk 0:00:15.1]} 35... Bf6 {[%clk
0:00:10.3]} 36. e5 {[%clk 0:00:14.3]} 36... dxe5 {[%clk 0:00:10.1]} 37. fxe5
{[%clk 0:00:15.2]} 37... Be7 {[%clk 0:00:07.1]} 38. Rxd4 {[%clk 0:00:12.8]}
38... Qb6 {[%clk 0:00:07.6]} 39. Rc4 {[%clk 0:00:10.1]} 39... Bc5 {[%clk
0:00:07.2]} 40. Qe3 {[%clk 0:00:10.7]} 40... Be6 {[%clk 0:00:06.3]} 41. Rxc5
{[%clk 0:00:08.8]} 41... Qxc5 {[%clk 0:00:01.2]} 42. Rd8+ {[%clk 0:00:08.8]}
42... Qf8 {[%clk 0:00:01.9]} 43. Rxf8+ {[%clk 0:00:08.2]} 43... Rxf8 {[%clk
0:00:02.8]} 44. Nf4 {[%clk 0:00:08.3]} 44... Bf5 {[%clk 0:00:02]} 45. Qc5 {[%clk
0:00:08.2]} 45... Rb8 {[%clk 0:00:02.7]} 46. Qd6 {[%clk 0:00:07.6]} 46... Rb7
{[%clk 0:00:02.3]} 47. Qc6 {[%clk 0:00:06.7]} 47... Rd7 {[%clk 0:00:02.2]} 48.
Qxa6 {[%clk 0:00:06.5]} 48... Rd1+ {[%clk 0:00:01.9]} 49. Kh2 {[%clk 0:00:06.2]}
49... Rd2 {[%clk 0:00:02.8]} 50. Qa8+ {[%clk 0:00:05.8]} 50... Kh7 {[%clk
0:00:03.4]} 51. Qd5 {[%clk 0:00:04.5]} 51... Rxb2 {[%clk 0:00:03.5]} 52. Qxf7
{[%clk 0:00:04.6]} 52... Be4 {[%clk 0:00:03.5]} 53. e6 {[%clk 0:00:04.6]} 53...
Bc6 {[%clk 0:00:03.2]} 54. e7 {[%clk 0:00:04.5]} 54... Rf2 {[%clk 0:00:03.5]}
55. Qg6+ {[%clk 0:00:04.2]} 55... Kg8 {[%clk 0:00:03.6]} 56. Ne6 {[%clk
0:00:04.6]} 56... Rf6 {[%clk 0:00:03.1]} 57. Qxg7# {[%clk 0:00:04.4]} 1-0

[Event "Early-Titled-Tuesday-Blitz-September-26-2023"]
[Site "Chess.com"]
[Date "2023.09.26"]
[Round "4"]
[White "HanSchut"]
[Black "Grossboss19"]
[Result "0-1"]
[WhiteElo "2329"]
[BlackElo "2519"]
[TimeControl "180+1"]
[EndTime "8:40:40 PDT"]
[Termination "Grossboss19 won on time"]

1. e4 {[%clk 0:02:53.2]} 1... c5 {[%clk 0:02:59.4]} 2. Nf3 {[%clk 0:02:52.3]}
2... Nc6 {[%clk 0:03:00]} 3. d4 {[%clk 0:02:52.8]} 3... cxd4 {[%clk 0:02:59.7]}
4. Nxd4 {[%clk 0:02:53.7]} 4... d6 {[%clk 0:02:59.7]} 5. c4 {[%clk 0:02:52.8]}
5... Nf6 {[%clk 0:02:58.1]} 6. Nc3 {[%clk 0:02:52.2]} 6... e5 {[%clk 0:02:57.2]}
7. Nc2 {[%clk 0:02:46.4]} 7... Be7 {[%clk 0:02:51.2]} 8. Bg5 {[%clk 0:02:42.6]}
8... h6 {[%clk 0:02:48.7]} 9. Bxf6 {[%clk 0:02:42.4]} 9... Bxf6 {[%clk
0:02:44.7]} 10. Bd3 {[%clk 0:02:36.6]} 10... O-O {[%clk 0:02:42.1]} 11. O-O
{[%clk 0:02:35.7]} 11... Be6 {[%clk 0:02:37]} 12. b3 {[%clk 0:02:33.9]} 12...
Rc8 {[%clk 0:02:33]} 13. Kh1 {[%clk 0:02:25.8]} 13... a6 {[%clk 0:02:31.2]} 14.
Ne3 {[%clk 0:02:22.7]} 14... Bg5 {[%clk 0:02:29.1]} 15. Ncd5 {[%clk 0:02:18.4]}
15... Nd4 {[%clk 0:02:23.6]} 16. f4 {[%clk 0:01:28.5]} 16... exf4 {[%clk
0:02:03.5]} 17. Nxf4 {[%clk 0:01:29.4]} 17... Nc6 {[%clk 0:01:53.7]} 18. Ned5
{[%clk 0:01:14.7]} 18... Ne5 {[%clk 0:01:49]} 19. Be2 {[%clk 0:01:12.3]} 19...
Ng6 {[%clk 0:01:26.9]} 20. Nxg6 {[%clk 0:00:59]} 20... fxg6 {[%clk 0:01:24.5]}
21. Nc3 {[%clk 0:00:56.2]} 21... Qe7 {[%clk 0:01:19.9]} 22. Qd3 {[%clk
0:00:49.8]} 22... Bf6 {[%clk 0:01:16.2]} 23. Rad1 {[%clk 0:00:42.6]} 23... Be5
{[%clk 0:01:13.7]} 24. g3 {[%clk 0:00:30.9]} 24... h5 {[%clk 0:01:01.9]} 25. Nd5
{[%clk 0:00:27.4]} 25... Qg5 {[%clk 0:00:51.1]} 26. Qd2 {[%clk 0:00:20.4]} 26...
Rxf1+ {[%clk 0:00:47.4]} 27. Bxf1 {[%clk 0:00:20.3]} 27... Qxd2 {[%clk
0:00:43.4]} 28. Rxd2 {[%clk 0:00:21.2]} 28... Rf8 {[%clk 0:00:43.8]} 29. Bg2
{[%clk 0:00:12.6]} 29... g5 {[%clk 0:00:39]} 30. Kg1 {[%clk 0:00:12.2]} 30... h4
{[%clk 0:00:32.7]} 31. gxh4 {[%clk 0:00:10.1]} 31... gxh4 {[%clk 0:00:33.6]} 32.
Ne3 {[%clk 0:00:10.2]} 32... h3 {[%clk 0:00:25.8]} 33. Bf1 {[%clk 0:00:08.7]}
33... Rf3 {[%clk 0:00:21.5]} 34. Nd5 {[%clk 0:00:07.4]} 34... g5 {[%clk
0:00:16.2]} 35. Be2 {[%clk 0:00:07.3]} 35... Rf7 {[%clk 0:00:15.3]} 36. Bf1
{[%clk 0:00:06.2]} 36... g4 {[%clk 0:00:15.3]} 37. Be2 {[%clk 0:00:06]} 37... g3
{[%clk 0:00:14.8]} 38. hxg3 {[%clk 0:00:06.9]} 38... Bxg3 {[%clk 0:00:14.7]} 39.
Bh5 {[%clk 0:00:02.9]} 39... Rh7 {[%clk 0:00:10.5]} 40. Nf6+ {[%clk 0:00:03]}
40... Kg7 {[%clk 0:00:09.3]} 41. Nxh7 {[%clk 0:00:03.9]} 41... Kxh7 {[%clk
0:00:08.5]} 42. Bf3 {[%clk 0:00:04.8]} 42... h2+ {[%clk 0:00:08.1]} 43. Kh1
{[%clk 0:00:04.8]} 43... Kh6 {[%clk 0:00:08.4]} 44. Rxh2+ {[%clk 0:00:04.8]}
44... Bxh2 {[%clk 0:00:08.3]} 45. Kxh2 {[%clk 0:00:05.7]} 45... Kg5 {[%clk
0:00:08.9]} 46. Kg3 {[%clk 0:00:06.5]} 46... b6 {[%clk 0:00:09.1]} 47. Bg2
{[%clk 0:00:06.8]} 47... a5 {[%clk 0:00:09.1]} 48. Kf3 {[%clk 0:00:06.9]} 48...
Kf6 {[%clk 0:00:06.5]} 49. Ke3 {[%clk 0:00:07.4]} 49... Ke5 {[%clk 0:00:06.7]}
50. Bf3 {[%clk 0:00:07.9]} 50... Bh3 {[%clk 0:00:06.3]} 51. Be2 {[%clk
0:00:07.3]} 51... Bg2 {[%clk 0:00:06.5]} 52. Bf3 {[%clk 0:00:07.7]} 52... Bh3
{[%clk 0:00:05.3]} 53. Be2 {[%clk 0:00:07.2]} 53... Bd7 {[%clk 0:00:05.4]} 54.
Bd3 {[%clk 0:00:06.9]} 54... a4 {[%clk 0:00:05.4]} 55. Be2 {[%clk 0:00:05.4]}
55... a3 {[%clk 0:00:05.1]} 56. Bd3 {[%clk 0:00:05.4]} 56... Bg4 {[%clk
0:00:05.2]} 57. Bc2 {[%clk 0:00:04.7]} 57... Bh5 {[%clk 0:00:04.9]} 58. Bd3
{[%clk 0:00:05.2]} 58... Bd1 {[%clk 0:00:04.9]} 59. Kd2 {[%clk 0:00:04.6]} 59...
Bxb3 {[%clk 0:00:03]} 0-1

[Event "Early-Titled-Tuesday-Blitz-September-26-2023"]
[Site "Chess.com"]
[Date "2023.09.26"]
[Round "4"]
[White "Shield12"]
[Black "moro182"]
[Result "1/2-1/2"]
[WhiteElo "2968"]
[BlackElo "2820"]
[TimeControl "180+1"]
[EndTime "8:40:43 PDT"]
[Termination "Game drawn - insufficient material"]

1. e4 {[%clk 0:03:00.9]} 1... e5 {[%clk 0:02:59.9]} 2. Nf3 {[%clk 0:03:00.8]}
2... d6 {[%clk 0:02:59.7]} 3. d4 {[%clk 0:03:00.4]} 3... exd4 {[%clk 0:03:00.6]}
4. Nxd4 {[%clk 0:03:01.3]} 4... Nf6 {[%clk 0:03:01.1]} 5. Nc3 {[%clk 0:03:01.4]}
5... Be7 {[%clk 0:03:01.4]} 6. Be2 {[%clk 0:03:00.3]} 6... O-O {[%clk
0:03:01.4]} 7. Bf4 {[%clk 0:03:00.9]} 7... Re8 {[%clk 0:02:49.4]} 8. Qd2 {[%clk
0:03:00]} 8... Bf8 {[%clk 0:02:40.7]} 9. f3 {[%clk 0:03:00.1]} 9... a6 {[%clk
0:02:34.7]} 10. Bg5 {[%clk 0:02:42.7]} 10... Be7 {[%clk 0:02:27.9]} 11. h4
{[%clk 0:02:33.5]} 11... c5 {[%clk 0:02:22.3]} 12. Nf5 {[%clk 0:02:31.5]} 12...
Bxf5 {[%clk 0:02:21.3]} 13. exf5 {[%clk 0:02:32.4]} 13... Nc6 {[%clk 0:01:48.2]}
14. O-O-O {[%clk 0:02:31.5]} 14... Nd4 {[%clk 0:01:39.5]} 15. Bd3 {[%clk
0:02:30.2]} 15... d5 {[%clk 0:01:37.5]} 16. Ne2 {[%clk 0:02:21.3]} 16... Nxe2+
{[%clk 0:01:27.3]} 17. Bxe2 {[%clk 0:02:22.2]} 17... d4 {[%clk 0:01:16.2]} 18.
Kb1 {[%clk 0:02:16.3]} 18... Nd5 {[%clk 0:01:15.4]} 19. Bc4 {[%clk 0:02:10.1]}
19... b5 {[%clk 0:01:14.8]} 20. Bxd5 {[%clk 0:01:53.1]} 20... Qxd5 {[%clk
0:01:15.7]} 21. Rhe1 {[%clk 0:01:53.3]} 21... f6 {[%clk 0:00:53.1]} 22. Bf4
{[%clk 0:01:52.3]} 22... Qxf5 {[%clk 0:00:52.7]} 23. g4 {[%clk 0:01:51.7]} 23...
Qd5 {[%clk 0:00:52]} 24. g5 {[%clk 0:01:52.1]} 24... fxg5 {[%clk 0:00:44.8]} 25.
hxg5 {[%clk 0:01:50.3]} 25... Bd6 {[%clk 0:00:42.2]} 26. Bxd6 {[%clk 0:01:46.4]}
26... Qxd6 {[%clk 0:00:43.1]} 27. f4 {[%clk 0:01:43.5]} 27... Rxe1 {[%clk
0:00:39.3]} 28. Rxe1 {[%clk 0:01:44.4]} 28... Rf8 {[%clk 0:00:39.8]} 29. Re4
{[%clk 0:01:35.8]} 29... Qd5 {[%clk 0:00:36]} 30. Qe1 {[%clk 0:01:33.5]} 30...
c4 {[%clk 0:00:35.7]} 31. Re5 {[%clk 0:01:20.2]} 31... Qf3 {[%clk 0:00:30.1]}
32. a4 {[%clk 0:00:45.5]} 32... d3 {[%clk 0:00:29.7]} 33. axb5 {[%clk
0:00:40.2]} 33... dxc2+ {[%clk 0:00:28.9]} 34. Kxc2 {[%clk 0:00:39.7]} 34...
axb5 {[%clk 0:00:24.8]} 35. Rxb5 {[%clk 0:00:34.5]} 35... Qd3+ {[%clk
0:00:20.6]} 36. Kc1 {[%clk 0:00:33.5]} 36... c3 {[%clk 0:00:21.5]} 37. Rb4
{[%clk 0:00:22.5]} 37... cxb2+ {[%clk 0:00:20.6]} 38. Kxb2 {[%clk 0:00:22.3]}
38... Qd6 {[%clk 0:00:21]} 39. Qc3 {[%clk 0:00:17.5]} 39... Qe7 {[%clk 0:00:10]}
40. Qb3+ {[%clk 0:00:13.3]} 40... Kh8 {[%clk 0:00:09.7]} 41. Rb8 {[%clk
0:00:12.3]} 41... Qe2+ {[%clk 0:00:08.5]} 42. Ka3 {[%clk 0:00:11.6]} 42... Qe7+
{[%clk 0:00:08]} 43. Kb2 {[%clk 0:00:11.5]} 43... Qd6 {[%clk 0:00:04.6]} 44.
Rxf8+ {[%clk 0:00:09.1]} 44... Qxf8 {[%clk 0:00:05.5]} 45. Qe6 {[%clk
0:00:06.1]} 45... Qg8 {[%clk 0:00:05.3]} 46. Qxg8+ {[%clk 0:00:03.7]} 46... Kxg8
{[%clk 0:00:06.2]} 47. Kc3 {[%clk 0:00:04.5]} 47... Kf7 {[%clk 0:00:06.7]} 48.
f5 {[%clk 0:00:02.9]} 48... h6 {[%clk 0:00:03.2]} 49. gxh6 {[%clk 0:00:02.5]}
49... gxh6 {[%clk 0:00:04.1]} 50. Kd4 {[%clk 0:00:03.1]} 50... Kf6 {[%clk
0:00:04.8]} 51. Ke3 {[%clk 0:00:04]} 51... h5 {[%clk 0:00:05.7]} 52. Kf2 {[%clk
0:00:04.9]} 52... h4 {[%clk 0:00:06.6]} 53. Kg1 {[%clk 0:00:05.5]} 53... Kxf5
{[%clk 0:00:07.5]} 54. Kh2 {[%clk 0:00:06.4]} 54... h3 {[%clk 0:00:08.4]} 55.
Kxh3 {[%clk 0:00:07.3]} 1/2-1/2

[Event "Early-Titled-Tuesday-Blitz-September-26-2023"]
[Site "Chess.com"]
[Date "2023.09.26"]
[Round "4"]
[White "Mackster23"]
[Black "Evgeny81"]
[Result "0-1"]
[WhiteElo "2559"]
[BlackElo "2754"]
[TimeControl "180+1"]
[EndTime "8:40:47 PDT"]
[Termination "Evgeny81 won by resignation"]

1. e4 {[%clk 0:03:00.9]} 1... c5 {[%clk 0:02:56.1]} 2. Nc3 {[%clk 0:03:00.9]}
2... g6 {[%clk 0:02:53.7]} 3. Nge2 {[%clk 0:02:59.9]} 3... Bg7 {[%clk
0:02:54.1]} 4. d4 {[%clk 0:02:58.5]} 4... cxd4 {[%clk 0:02:54.7]} 5. Nxd4 {[%clk
0:02:59.4]} 5... Nc6 {[%clk 0:02:55]} 6. Be3 {[%clk 0:02:59.9]} 6... d6 {[%clk
0:02:52.8]} 7. Qd2 {[%clk 0:02:57.3]} 7... Nf6 {[%clk 0:02:52.7]} 8. f3 {[%clk
0:02:56.7]} 8... Bd7 {[%clk 0:02:51.6]} 9. Bc4 {[%clk 0:02:54.4]} 9... Rc8
{[%clk 0:02:50.9]} 10. Bb3 {[%clk 0:02:54.1]} 10... Ne5 {[%clk 0:02:50.5]} 11.
O-O-O {[%clk 0:02:34.6]} 11... h5 {[%clk 0:02:49.9]} 12. Rhe1 {[%clk 0:02:25.4]}
12... Nc4 {[%clk 0:02:43.3]} 13. Bxc4 {[%clk 0:02:24.4]} 13... Rxc4 {[%clk
0:02:44.2]} 14. Kb1 {[%clk 0:01:53]} 14... a6 {[%clk 0:02:39.8]} 15. Bg5 {[%clk
0:01:43.7]} 15... O-O {[%clk 0:02:33.3]} 16. Nb3 {[%clk 0:01:34]} 16... Nh7
{[%clk 0:02:09]} 17. Bh6 {[%clk 0:01:33.1]} 17... Bxc3 {[%clk 0:02:00.4]} 18.
bxc3 {[%clk 0:01:34]} 18... Re8 {[%clk 0:01:58.8]} 19. e5 {[%clk 0:01:34.2]}
19... Be6 {[%clk 0:01:50.8]} 20. exd6 {[%clk 0:01:29.7]} 20... Qxd6 {[%clk
0:01:47.7]} 21. Qxd6 {[%clk 0:01:27]} 21... exd6 {[%clk 0:01:47.8]} 22. Rxd6
{[%clk 0:01:26.8]} 22... Rxc3 {[%clk 0:01:42.2]} 23. Bd2 {[%clk 0:01:16.8]}
23... Rc7 {[%clk 0:01:29.2]} 24. Ba5 {[%clk 0:01:10.9]} 24... Rcc8 {[%clk
0:01:16.5]} 25. Nd4 {[%clk 0:01:09.3]} 25... Nf8 {[%clk 0:01:08.9]} 26. a3
{[%clk 0:00:58.2]} 26... Rc4 {[%clk 0:00:56.9]} 27. Nxe6 {[%clk 0:00:55.3]}
27... Nxe6 {[%clk 0:00:55.4]} 28. Rd7 {[%clk 0:00:54.6]} 28... b6 {[%clk
0:00:51.1]} 29. Bxb6 {[%clk 0:00:42.4]} 29... Rb8 {[%clk 0:00:45.8]} 30. Rd6
{[%clk 0:00:42.7]} 30... Nd4 {[%clk 0:00:31.7]} 31. Re4 {[%clk 0:00:40.4]} 31...
Nxc2 {[%clk 0:00:25.5]} 32. Ka2 {[%clk 0:00:20]} 32... Rxe4 {[%clk 0:00:17.5]}
33. fxe4 {[%clk 0:00:20.9]} 33... Ne1 {[%clk 0:00:17.8]} 34. g3 {[%clk
0:00:20.4]} 34... Nf3 {[%clk 0:00:17.5]} 35. a4 {[%clk 0:00:19.7]} 35... Nxh2
{[%clk 0:00:15.8]} 36. a5 {[%clk 0:00:18.1]} 36... Nf1 {[%clk 0:00:13.4]} 37.
Bc7 {[%clk 0:00:17.8]} 37... Rc8 {[%clk 0:00:10.6]} 38. Bd8 {[%clk 0:00:13.1]}
38... Nxg3 {[%clk 0:00:09.6]} 39. e5 {[%clk 0:00:10.8]} 39... Nf5 {[%clk
0:00:08.9]} 40. Rd3 {[%clk 0:00:09.9]} 40... h4 {[%clk 0:00:08.2]} 41. Bf6
{[%clk 0:00:09.4]} 41... Kh7 {[%clk 0:00:04.3]} 42. Rh3 {[%clk 0:00:09.3]} 42...
Kh6 {[%clk 0:00:04.4]} 43. Bxh4 {[%clk 0:00:09.4]} 43... Nxh4 {[%clk 0:00:04.7]}
44. Rxh4+ {[%clk 0:00:10.3]} 44... Kg5 {[%clk 0:00:05.1]} 45. Rh7 {[%clk
0:00:10.6]} 45... Rc5 {[%clk 0:00:03.8]} 46. Rxf7 {[%clk 0:00:10.3]} 46... Rxe5
{[%clk 0:00:04]} 47. Ra7 {[%clk 0:00:07.1]} 47... Rxa5+ {[%clk 0:00:04.4]} 48.
Kb3 {[%clk 0:00:07.8]} 48... Kf4 {[%clk 0:00:04.4]} 49. Rf7+ {[%clk 0:00:07]}
49... Rf5 {[%clk 0:00:03]} 50. Ra7 {[%clk 0:00:07.5]} 50... a5 {[%clk
0:00:02.7]} 51. Ra8 {[%clk 0:00:05.4]} 51... g5 {[%clk 0:00:03.6]} 52. Rc8
{[%clk 0:00:05.2]} 52... g4 {[%clk 0:00:04]} 53. Rc4+ {[%clk 0:00:05.9]} 53...
Kg3 {[%clk 0:00:04.4]} 54. Ka4 {[%clk 0:00:05.6]} 54... Kh4 {[%clk 0:00:04]} 55.
Rd4 {[%clk 0:00:05.4]} 55... Kh3 {[%clk 0:00:03.4]} 56. Rd8 {[%clk 0:00:05.2]}
56... g3 {[%clk 0:00:03.9]} 57. Rh8+ {[%clk 0:00:04]} 57... Kg2 {[%clk
0:00:04.2]} 58. Rg8 {[%clk 0:00:04.3]} 58... Kf3 {[%clk 0:00:04]} 59. Rg6 {[%clk
0:00:03.2]} 59... g2 {[%clk 0:00:04.2]} 60. Rg8 {[%clk 0:00:03.1]} 60... Rf4+
{[%clk 0:00:04.8]} 61. Kxa5 {[%clk 0:00:03]} 61... Rg4 {[%clk 0:00:05.7]} 62.
Rf8+ {[%clk 0:00:03.5]} 62... Kg3 {[%clk 0:00:06.3]} 63. Rf1 {[%clk 0:00:04.2]}
63... gxf1=Q {[%clk 0:00:06.3]} 0-1